{"text_format":"3","workbook":"xlsx","n_sheets":2,"sheets":["Budjetin yhteenveto","Budjetin tiedot"],"not_rendered":{"images":1,"defined_names":1},"read":"whole","date_system":"1900"}

{"sheet":"Budjetin yhteenveto","index":0,"n_rows":28,"n_cols":7,"rows_kept":28}
[{"$nulls":6}," "]
[]
[null,"HÄÄJUHLIEN KOKONAISBUDJETTI",{"v":20000,"d":"20,000 €"}]
[]
[null,"MENOT","Kustannuksen osuus \n%","Varattu budjetti","Arvioidut \nKustannukset","Todelliset \nKustannukset"]
[null,"Vastaanotto",{"v":0.5,"d":"50%"},{"$f":"Hääjuhlien_kokonaisbudjetti*'Budjetin yhteenveto'!$C6","v":{"v":10000,"d":"10,000 €"}},{"$f":"Taulukko_Vastaanotto[[#Totals],[Arvioidut kustannukset]]","v":{"v":0,"d":"0 €"}},{"$f":"Taulukko_Vastaanotto[[#Totals],[Todelliset kulut]]","v":{"v":0,"d":"0 €"}}]
[null,"Vaatetus",{"v":0.1,"d":"10%"},{"$f":"Hääjuhlien_kokonaisbudjetti*'Budjetin yhteenveto'!$C7","v":{"v":2000,"d":"2,000 €"}},{"$f":"Taulukko_Asut[[#Totals],[Arvioidut kustannukset]]","v":{"v":0,"d":"0 €"}},{"$f":"Taulukko_Asut[[#Totals],[Todelliset kulut]]","v":{"v":0,"d":"0 €"}}]
[null,"Kukat ja koristeet",{"v":0.1,"d":"10%"},{"$f":"Hääjuhlien_kokonaisbudjetti*'Budjetin yhteenveto'!$C8","v":{"v":2000,"d":"2,000 €"}},{"$f":"Taulukko_Kukat_ja_koristeet[[#Totals],[Arvioidut kustannukset]]","v":{"v":0,"d":"0 €"}},{"$f":"Taulukko_Kukat_ja_koristeet[[#Totals],[Todelliset kulut]]","v":{"v":0,"d":"0 €"}}]
[null,"Musiikki",{"v":0.1,"d":"10%"},{"$f":"Hääjuhlien_kokonaisbudjetti*'Budjetin yhteenveto'!$C9","v":{"v":2000,"d":"2,000 €"}},{"$f":"Taulukko_Musiikki[[#Totals],[Arvioidut kustannukset]]","v":{"v":0,"d":"0 €"}},{"$f":"Taulukko_Musiikki[[#Totals],[Todelliset kulut]]","v":{"v":0,"d":"0 €"}}]
[null,"Valokuvat ja video",{"v":0.1,"d":"10%"},{"$f":"Hääjuhlien_kokonaisbudjetti*'Budjetin yhteenveto'!$C10","v":{"v":2000,"d":"2,000 €"}},{"$f":"Taulukko_Valokuvaus_ja_videokuvaus[[#Totals],[Arvioidut kustannukset]]","v":{"v":0,"d":"0 €"}},{"$f":"Taulukko_Valokuvaus_ja_videokuvaus[[#Totals],[Todelliset kulut]]","v":{"v":0,"d":"0 €"}}]
[null,"Lahjat vieraille",{"v":0.03,"d":"3%"},{"$f":"Hääjuhlien_kokonaisbudjetti*'Budjetin yhteenveto'!$C11","v":{"v":600,"d":"600 €"}},{"$f":"Taulukko_Palvelukset_ja_lahjat[[#Totals],[Arvioidut kustannukset]]","v":{"v":0,"d":"0 €"}},{"$f":"Taulukko_Palvelukset_ja_lahjat[[#Totals],[Todelliset kulut]]","v":{"v":0,"d":"0 €"}}]
[null,"Seremonia",{"v":0.02,"d":"2%"},{"$f":"Hääjuhlien_kokonaisbudjetti*'Budjetin yhteenveto'!$C12","v":{"v":400,"d":"400 €"}},{"$f":"Taulukko_Vihkiminen[[#Totals],[Arvioidut kustannukset]]","v":{"v":0,"d":"0 €"}},{"$f":"Taulukko_Vihkiminen[[#Totals],[Todelliset kulut]]","v":{"v":0,"d":"0 €"}}]
[null,"Paperitavarat",{"v":0.02,"d":"2%"},{"$f":"Hääjuhlien_kokonaisbudjetti*'Budjetin yhteenveto'!$C13","v":{"v":400,"d":"400 €"}},{"$f":"Taulukko_Paperitavara[[#Totals],[Arvioidut kustannukset]]","v":{"v":0,"d":"0 €"}},{"$f":"Taulukko_Paperitavara[[#Totals],[Todelliset kulut]]","v":{"v":0,"d":"0 €"}}]
[null,"Vihkisormukset",{"v":0.02,"d":"2%"},{"$f":"Hääjuhlien_kokonaisbudjetti*'Budjetin yhteenveto'!$C14","v":{"v":400,"d":"400 €"}},{"$f":"Taulukko_Sormukset[[#Totals],[Arvioidut kustannukset]]","v":{"v":0,"d":"0 €"}},{"$f":"Taulukko_Sormukset[[#Totals],[Todelliset kulut]]","v":{"v":0,"d":"0 €"}}]
[null,"Kuljetus",{"v":0.01,"d":"1%"},{"$f":"Hääjuhlien_kokonaisbudjetti*'Budjetin yhteenveto'!$C15","v":{"v":200,"d":"200 €"}},{"$f":"Taulukko_Kuljetukset[[#Totals],[Arvioidut kustannukset]]","v":{"v":0,"d":"0 €"}},{"$f":"Taulukko_Kuljetukset[[#Totals],[Todelliset kulut]]","v":{"v":0,"d":"0 €"}}]
[null,"Summa",{"$f":"SUM(C6:C15)","v":{"v":1,"d":"100%"}},{"$f":"SUM(D6:D15)","v":{"v":20000,"d":"20,000 €"}},{"v":0,"d":"0 €"},{"v":0,"d":"0 €"}]
[]
[null,"Rahoitus"]
[null,"Rahoituksen lähde","Rahoitus"]
[null,"Säästöt",{"v":10000,"d":"10,000 €"}]
[null,"Kumppanin 1 äiti & isä",{"v":4000,"d":"4,000 €"}]
[null,"Kumppanin 1 isovanhemmat",{"v":2000,"d":"2,000 €"}]
[null,"Kumppanin 2 äiti & isä",{"v":4000,"d":"4,000 €"}]
[null,"Kumppanin 2 isovanhemmat",{"v":4000,"d":"4,000 €"}]
[null,"Muut rahoituslähteet",{"v":2000,"d":"2,000 €"}]
[null,"Summa",{"$f":"SUBTOTAL(109,Taulukko_Varat[Rahoitus])","v":{"v":26000,"d":"26,000 €"}}]
[]
[null,{"$f":"IF(Taulukko_Varat[[#Totals],[Rahoitus]]<Hääjuhlien_kokonaisbudjetti,\"Korvattava erotus\",\"Saatavilla olevat lisävarat\")","v":"Saatavilla olevat lisävarat"},{"$f":"IF(Taulukko_Varat[[#Totals],[Rahoitus]]<Hääjuhlien_kokonaisbudjetti,Hääjuhlien_kokonaisbudjetti-Taulukko_Varat[[#Totals],[Rahoitus]],Taulukko_Varat[[#Totals],[Rahoitus]]-Hääjuhlien_kokonaisbudjetti)","v":{"v":6000,"d":"6,000 €"}}]

{"sheet":"Budjetin tiedot","index":1,"n_rows":80,"n_cols":4,"rows_kept":80}
[]
[null,"VASTAANOTTO","Arvioidut kustannukset","Todelliset kulut"]
[null,"Tapahtumapaikka ja vuokrat"]
[null,"Ruoka ja palvelu"]
[null,"Juomat"]
[null,"Kakku"]
[null,"Sekalaiset kulut"]
[null,"Summa",{"$f":"SUBTOTAL(109,Taulukko_Vastaanotto[Arvioidut kustannukset])","v":{"v":0,"d":"0.00 €"}},{"$f":"SUBTOTAL(109,Taulukko_Vastaanotto[Todelliset kulut])","v":{"v":0,"d":"0.00 €"}}]
[]
[null,"VAATETUS","Arvioidut kustannukset","Todelliset kulut"]
[null,"Smokki, puku ja/tai mekot"]
[null,"Muutokset"]
[null,"Päähine ja huntu"]
[null,"Asusteet"]
[null,"Hiukset ja meikki"]
[null,"Sekalaiset kulut"]
[null,"Summa",{"$f":"SUBTOTAL(109,Taulukko_Asut[Arvioidut kustannukset])","v":{"v":0,"d":"0.00 €"}},{"$f":"SUBTOTAL(109,Taulukko_Asut[Todelliset kulut])","v":{"v":0,"d":"0.00 €"}}]
[]
[null,"KUKAT JA KORISTEET","Arvioidut kustannukset","Todelliset kulut"]
[null,"Seremonian kukka-asetelmat"]
[null,"Morsiusneidon kukat ja kori"]
[null,"Sormustyyny"]
[null,"Kukkakimput"]
[null,"Napinläpikukat"]
[null,"Rintakukat"]
[null,"Vastaanoton koristeet"]
[null,"Valaistus"]
[null,"Sekalaiset kulut"]
[null,"Summa",{"$f":"SUBTOTAL(109,Taulukko_Kukat_ja_koristeet[Arvioidut kustannukset])","v":{"v":0,"d":"0.00 €"}},{"$f":"SUBTOTAL(109,Taulukko_Kukat_ja_koristeet[Todelliset kulut])","v":{"v":0,"d":"0.00 €"}}]
[]
[null,"MUSIIKKI","Arvioidut kustannukset","Todelliset kulut"]
[null,"Seremonian muusikot"]
[null,"Cocktail-tilaisuuden muusikot"]
[null,"Vastaanoton yhtye, DJ tai ohjelma"]
[null,"Äänentoistojärjestelmän tai tanssilattian vuokraus"]
[null,"Sekalaiset kulut"]
[null,"Summa",{"$f":"SUBTOTAL(109,Taulukko_Musiikki[Arvioidut kustannukset])","v":{"v":0,"d":"0.00 €"}},{"$f":"SUBTOTAL(109,Taulukko_Musiikki[Todelliset kulut])","v":{"v":0,"d":"0.00 €"}}]
[]
[null,"VALOKUVAT JA VIDEO","Arvioidut kustannukset","Todelliset kulut"]
[null,"Valokuvaus"]
[null,"Videokuvaus"]
[null,"Lisäkopiot ja albumit"]
[null,"Sekalaiset kulut"]
[null,"Summa",{"$f":"SUBTOTAL(109,Taulukko_Valokuvaus_ja_videokuvaus[Arvioidut kustannukset])","v":{"v":0,"d":"0.00 €"}},{"$f":"SUBTOTAL(109,Taulukko_Valokuvaus_ja_videokuvaus[Todelliset kulut])","v":{"v":0,"d":"0.00 €"}}]
[]
[null,"Lahjat vieraille","Arvioidut kustannukset","Todelliset kulut"]
[null,"Tervetuliaislahjat"]
[null,"Juhlalahjat"]
[null,"Sekalaiset kulut"]
[null,"Summa",{"$f":"SUBTOTAL(109,Taulukko_Palvelukset_ja_lahjat[Arvioidut kustannukset])","v":{"v":0,"d":"0.00 €"}},{"$f":"SUBTOTAL(109,Taulukko_Palvelukset_ja_lahjat[Todelliset kulut])","v":{"v":0,"d":"0.00 €"}}]
[]
[null,"SEREMONIA","Arvioidut kustannukset","Todelliset kulut"]
[null,"Paikkamaksu"]
[null,"Virallinen palkkio tai lahjoitus kirkolle"]
[null,"Sekalaiset kulut"]
[null,"Summa",{"$f":"SUBTOTAL(109,Taulukko_Vihkiminen[Arvioidut kustannukset])","v":{"v":0,"d":"0.00 €"}},{"$f":"SUBTOTAL(109,Taulukko_Vihkiminen[Todelliset kulut])","v":{"v":0,"d":"0.00 €"}}]
[]
[null,"PAPERITAVARAT","Arvioidut kustannukset","Todelliset kulut"]
[null,"Save-the-date -kortit"]
[null,"Kutsut ja RSVP"]
[null,"Ohjelmat"]
[null,"Istumajärjestys ja -paikkakortit"]
[null,"Ruokalistat"]
[null,"Kiitoskortit"]
[null,"Postimaksut"]
[null,"Sekalaiset kulut"]
[null,"Summa",{"$f":"SUBTOTAL(109,Taulukko_Paperitavara[Arvioidut kustannukset])","v":{"v":0,"d":"0.00 €"}},{"$f":"SUBTOTAL(109,Taulukko_Paperitavara[Todelliset kulut])","v":{"v":0,"d":"0.00 €"}}]
[]
[null,"VIHKISORMUKSET","Arvioidut kustannukset","Todelliset kulut"]
[null,"Vihkisormukset"]
[null,"Sormusasusteet"]
[null,"Summa",{"$f":"SUBTOTAL(109,Taulukko_Sormukset[Arvioidut kustannukset])","v":{"v":0,"d":"0.00 €"}},{"$f":"SUBTOTAL(109,Taulukko_Sormukset[Todelliset kulut])","v":{"v":0,"d":"0.00 €"}}]
[]
[null,"MATKAT","Arvioidut kustannukset","Todelliset kulut"]
[null,"Juhlaparin autonvuokraus"]
[null,"Vieraiden autonvuokraus"]
[null,"Kuljetukset muualta tulleille vieraille"]
[null,"Pysäköintipalvelu"]
[null,"Sekalaiset kulut"]
[null,"Summa",{"$f":"SUBTOTAL(109,Taulukko_Kuljetukset[Arvioidut kustannukset])","v":{"v":0,"d":"0.00 €"}},{"$f":"SUBTOTAL(109,Taulukko_Kuljetukset[Todelliset kulut])","v":{"v":0,"d":"0.00 €"}}]